Cogmind - Beta 10.2 @@@ ROGUE MODE // 2021.04.12 @ 09:06:37 Player: sentrybuster Result: Destroyed by B-90 Cyclops with Nova Cannon Performance ------------- Evolutions (7) 3500 Regions Visited (14) 2800 Robots Destroyed (212) 1060 Value Destroyed (9239) 9239 Prototype IDs (30) 600 Alien Tech Used (0) 0 Bonus (4923) 4923 TOTAL SCORE: 22122 Bonus ------- High Alert Combat Kills 529 Follower Combat Kills 1645 Met Warlord at Base 500 MAIN.C Attacked Warlord 500 Warlord Defense Kill 2014 Friendly Fire -265 Cogmind --------- Core Integrity 0/1300 Matter 45/300 Energy 99/100 System Corruption 13% Temperature Cool (9) Movement Core (50) Location -3/Research Parts ------- > --- POWER (1) -------- (None) > --- PROPULSION (5) --- (None) > --- UTILITY (10) ----- (None) > --- WEAPON (5) ------- (None) > --- INVENTORY (4) ---- Biometal Leg Peak State ------------ > --- POWER ------------ Light Antimatter Reactor > --- PROPULSION ------- Centrium Heavy Treads Centrium Heavy Treads > --- UTILITY ---------- Improved Cooling System Improved Cooling System High-capacity Storage Unit Advanced Visual Processing Unit Long-range Terrain Scanner Advanced Terrain Scan Processor Advanced Targeting Computer Centrium Medium Armor Plating Centrium Medium Armor Plating > --- WEAPON ----------- Tesla Rifle Dispersion Rifle Matter Neutralizer Heavy Neutron Cannon Improved KE Penetrator > --- INVENTORY -------- Neutrino Core Quantum Reactor Centrium Heavy Treads Long-range Sensor Array Advanced Particle Charger Heavy Proton Cannon Heavy Shock Bomb Launcher Missile Launcher Heavy Missile Launcher Improved Remote Datajack [Rating: 126] Favorites ----------- Power Micro Fission Core Engine Ion Engine Power Core Micro Fission Core Reactor Quantum Reactor Propulsion Titanium Leg Treads Centrium Heavy Treads Leg Titanium Leg Wheel Wheel Utility Advanced Visual Processing Unit Device Improved Cooling System Storage High-capacity Storage Unit Processor Advanced Visual Processing Unit Hackware System Shield Protection Centrium Medium Armor Plating Weapon Heavy Mace Energy Gun Force Rifle Energy Cannon Heavy Proton Cannon Ballistic Gun Assault Rifle Ballistic Cannon Gauss Cannon Launcher Heavy Missile Launcher Special Weapon Improved Remote Datajack Impact Weapon Heavy Mace Piercing Weapon Heavy Pick Build | -11 -10 -9 -8 -7 -6 -5 -5 -5 -5 -4 -4 -4 -3 -3 ------- Run | Scr Mat Mat Mat Fac Fac Fac Ext Cet Arc Fac Upp War Pro Res Slots Evolved 14 | . . 2 2 2 2 2 . . . 2 . . . 2 Power . | . . . . . . . . . . . . . . . Propulsion 3 | . . . 1 . . 1 . . . . . . . 1 Utility 8 | . . 2 . 2 2 1 . . . . . . . 1 Weapon 3 | . . . 1 . . . . . . 2 . . . . Parts Attached 237 | 8 1 21 15 52 19 14 20 12 3 21 7 11 5 28 Power 16 | 1 . 2 1 2 1 2 . 1 . 4 . . . 2 Engine 6 | 1 . 2 . 1 1 1 . . . . . . . . Core 6 | . . . 1 1 . 1 . . . 2 . . . 1 Reactor 4 | . . . . . . . . 1 . 2 . . . 1 Propulsion 45 | 3 . 3 2 12 1 1 6 2 . 1 2 2 . 10 Treads 13 | 1 . . . . . 1 . 2 . 1 1 2 . 5 Leg 31 | 2 . 3 2 11 1 . 6 . . . 1 . . 5 Wheel 1 | . . . . 1 . . . . . . . . . . Hover . | . . . . . . . . . . . . . . . Flight . | . . . . . . . . . . . . . . . Utility 67 | 2 1 6 4 19 7 6 4 2 . 6 4 1 3 2 Device 32 | 1 . 1 2 12 3 2 2 . . 2 3 1 2 1 Storage 5 | 1 1 1 . . 2 . . . . . . . . . Processor 6 | . . 1 . 3 . 1 . . . . 1 . . . Hackware 1 | . . . . . . . . . . . . . 1 . Protection 23 | . . 3 2 4 2 3 2 2 . 4 . . . 1 Artifact . | . . . . . . . . . . . . . . . Weapon 109 | 2 . 10 8 19 10 5 10 7 3 10 1 8 2 14 Energy Gun 29 | 1 . 2 2 6 5 1 2 3 1 4 . 1 . 1 Energy Cannon 27 | . . 4 2 6 . 4 5 . 1 3 1 1 . . Ballistic Gun 15 | 1 . 2 1 1 1 . . 1 . . . . 1 7 Ballistic Cannon 7 | . . . . 3 . . 1 1 . . . 1 . 1 Launcher 14 | . . 1 . 3 2 . . 1 . 3 . 2 . 2 Special Weapon 6 | . . 1 1 . . . 1 1 1 . . 1 . . Impact Weapon 3 | . . . 2 . 1 . . . . . . . . . Slashing Weapon . | . . . . . . . . . . . . . . . Piercing Weapon 8 | . . . . . 1 . 1 . . . . 2 1 3 Special Melee Weapon . | . . . . . . . . . . . . . . . Unidentified Prototypes 19 | . . 2 2 3 1 1 1 4 . . . 3 . 2 Parts Lost 80 | . . 1 3 8 4 2 4 . . 14 4 5 4 31 Power 7 | . . . . 1 . . . . . 3 . . 1 2 Propulsion 19 | . . . . 3 1 . 1 . . 1 1 . 2 10 Utility 24 | . . . 1 2 . 1 2 . . 5 1 3 . 9 Weapon 30 | . . 1 2 2 3 1 1 . . 5 2 2 1 10 Highest Loss Streak 14 | . . 1 2 3 2 2 1 . . 6 5 3 4 14 Average Slot Usage (%) 86 | . 100 99 95 97 98 90 92 88 87 79 51 72 74 46 Engine 3 | . 14 10 2 1 6 2 . . . . . . . . Core 2 | . . . 6 5 . 2 5 1 . . 5 5 4 . Treads 3 | . . . . . . 1 1 8 11 10 7 10 14 4 Leg 14 | . 28 21 24 21 19 17 21 4 . . 1 4 . 1 Device 13 | . 13 11 9 10 19 13 15 17 17 13 9 15 15 9 Storage 6 | . 14 11 9 7 6 5 5 5 5 5 5 5 5 3 Processor 16 | . . 11 9 20 20 19 17 17 17 15 16 20 15 11 Protection 5 | . . 10 8 5 6 8 6 9 11 10 . . . . Energy Gun 4 | . 14 1 8 4 9 4 3 4 4 6 . 2 . . Energy Cannon 4 | . . 9 6 4 . 4 3 3 4 5 4 3 4 . Ballistic Gun 3 | . 14 11 3 1 1 . . 3 5 5 . . 4 9 Ballistic Cannon 1 | . . . . 3 . . 1 . . . . . 5 . Impact Weapon 2 | . . . 5 7 3 . . . . . . . . . Piercing Weapon 1 | . . . . . 1 5 4 2 . . . . . . Naked Turns 17 | . . . . . . . . . . . . . . 17 Heaviest Build 108 | 14 17 31 32 51 66 93 108 99 92 107 56 105 96 82 Greatest Support 160 | 20 20 30 40 57 54 54 70 160 160 160 108 130 130 84 Greatest Overweight (x) 17 | 1 . 1 1 4 1 4 1 1 . . 2 . 3 17 Average Overweight (x) . | . . . . . . 1 1 . . . . . . 1 Largest Inventory Capacity 12 | 6 8 8 8 8 12 12 12 12 12 12 12 12 12 12 Average Capacity 9 | 5 6 7 8 8 9 12 12 12 12 12 12 12 12 10 Most Carried 12 | 6 7 8 8 8 12 12 12 12 12 12 12 12 12 12 Average Carried 9 | 4 6 7 7 7 9 11 11 11 11 10 6 11 11 9 Final Capacity 12 | 6 8 8 8 8 12 12 12 12 12 12 12 12 12 4 Final Carried 12 | 6 7 8 8 8 12 12 12 12 12 6 12 12 12 1 Class Distribution -------------------- 31% | Assassin 26% | Scavenger-Mutant 16% | Mutant 12% | Scavenger-Assassin 6% | Scavenger-Skirmisher 5% | Scavenger-Gunner Dominant Class ---------------- Mutant | -10/Materials Scavenger-Mutant | -9/Materials Scavenger-Mutant | -8/Materials Assassin | -7/Factory Assassin | -6/Factory Assassin | -5/Factory Scavenger-Assassin | -5/Extension Scavenger-Assassin | -5/Cetus Scavenger-Skirmisher | -5/Archives Scavenger-Skirmisher | -4/Factory Mutant | -4/Upper Caves Scavenger-Mutant | -4/Warlord Scavenger-Gunner | -3/Proximity Caves Mutant | -3/Research Resources | -11 -10 -9 -8 -7 -6 -5 -5 -5 -5 -4 -4 -4 -3 -3 ----------- Run | Scr Mat Mat Mat Fac Fac Fac Ext Cet Arc Fac Upp War Pro Res Matter Collected 5173 | 328 15 432 229 790 458 150 427 213 58 458 212 598 308 497 Remotely . | . . . . . . . . . . . . . . . Salvage Created 10222 | 174 28 995 518 1557 945 521 943 174 191 1217 540 889 461 1069 Parts 454 | 12 2 70 26 87 37 17 33 7 4 49 6 31 14 59 Haulers Intercepted 9 | . . 3 1 3 1 . . . . 1 . . . . Recyclers Shooed 10 | 1 . 3 . 1 3 . . . . 1 . . . 1 Parts Field Recycled . | . . . . . . . . . . . . . . . Retrieved Matter . | . . . . . . . . . . . . . . . Parts Self-Destructed 112 | . . . . . . . . . . . 1 100 11 . Prevented 38 | . . . . . . . . . . . 2 35 1 . Kills | -11 -10 -9 -8 -7 -6 -5 -5 -5 -5 -4 -4 -4 -3 -3 ------- Run | Scr Mat Mat Mat Fac Fac Fac Ext Cet Arc Fac Upp War Pro Res Combat Hostiles Destroyed 151 | . . 22 6 23 14 8 11 3 3 20 4 14 8 15 Melee 9 | . . . . 1 . 2 1 . . . . . 1 4 Guns 51 | . . 8 5 7 5 2 1 1 3 9 . . 1 9 Cannons 58 | . . 12 1 10 . 4 9 . . 7 1 7 6 1 AOE 28 | . . 2 . 4 9 . . 1 . 3 2 6 . 1 Classes Destroyed 21 | 3 1 5 2 3 . . 1 . . 1 2 3 . . Worker 16 | 1 . 1 1 9 1 . . . . 1 . . . 2 Builder 9 | . . . . 4 1 . 1 . . 1 . . . 2 Tunneler 4 | 3 . . . . 1 . . . . . . . . . Hauler 9 | . . 3 1 3 1 . . . . 1 . . . . Recycler 10 | 1 . 1 1 1 2 . 2 . . 2 . . . . Minesweeper 1 | . . . . . . . . . . . 1 . . . Mechanic 4 | . . . 1 2 . . 1 . . . . . . . Operator 3 | . . 1 . . . . 2 . . . . . . . Watcher 5 | . 1 2 1 1 . . . . . . . . . . Swarmer 22 | . . 10 . . 7 . . . . 4 1 . . . Grunt 59 | . . 5 2 13 5 6 6 1 . 2 2 9 4 4 Brawler 2 | . . . 1 . . . . . . . . 1 . . Duelist 1 | . . . . . . . . . . 1 . . . . Protector 2 | . . . . . . . . . . . . 2 . . Sentry 27 | . . 7 3 4 1 2 3 . 3 1 1 . . 2 Hunter 13 | . . . . 1 . . . . . 4 . . 4 4 Programmer 19 | . . . . 5 1 . . . . 8 . . . 5 Behemoth 2 | . . . . . . . 2 . . . . . . . Cetus Guard 2 | . . . . . . . . 2 . . . . . . Striker 1 | . . . . . . . . . . . . 1 . . Executioner 1 | . . . . . . . . . . . . 1 . . Decomposer 2 | . . . . . . . . . . . 2 . . . Packrat 2 | . . . . . . . . . . . 2 . . . Samaritan 3 | . . . . . . . . . . . 3 . . . Best Kill Streak 11 | 2 1 5 2 11 11 3 6 2 2 9 3 7 4 5 Combat Bots Only 10 | . . 5 2 5 10 3 3 2 2 5 3 7 4 4 Max Kills in Single Turn 4 | 1 1 3 1 4 3 1 1 1 1 3 1 2 1 3 Gunslinging 1 | . . . . . . . . . . . . . . 1 Exploded 3 | . . 2 . 3 2 . . 1 . 1 1 2 . 1 Melee 1 | . . . . 1 . 1 1 . . . . . 1 1 Uniques/NPCs Destroyed . | . . . . . . . . . . . . . . . Combat | -11 -10 -9 -8 -7 -6 -5 -5 -5 -5 -4 -4 -4 -3 -3 -------- Run | Scr Mat Mat Mat Fac Fac Fac Ext Cet Arc Fac Upp War Pro Res Damage Taken 16676 | . . 648 500 1919 913 925 1470 89 199 3206 306 708 703 5090 Core 2465 | . . 92 93 222 114 80 149 . 24 239 . . 124 1328 Absorbed by Shields 622 | . . . . . . . 57 59 . . . 410 96 . Core Remaining (%) 82 | 100 100 77 83 68 86 . . . 74 . . . 68 . Volleys Fired 547 | 16 5 66 31 98 38 25 66 9 19 60 28 26 18 42 Largest 5 | 2 2 2 3 2 2 2 2 3 3 5 3 3 3 4 Hottest 453 | 70 70 100 154 143 155 171 171 344 344 453 131 236 201 131 Shots Fired 973 | 32 10 129 49 170 66 33 106 19 29 116 34 44 33 103 Gun 537 | 32 10 80 34 79 55 8 29 9 18 58 2 11 14 98 Cannon 376 | . . 45 13 86 . 25 75 7 4 47 28 25 19 2 Launcher 45 | . . 3 . 5 11 . . 2 . 11 4 6 . 3 Special 15 | . . 1 2 . . . 2 1 7 . . 2 . . Kinetic 449 | 16 5 74 16 76 10 . 36 5 12 44 1 23 32 99 Thermal 385 | 16 5 52 23 73 45 33 67 6 10 55 . . . . Explosive 33 | . . 3 . 2 6 . . 2 . 9 4 4 . 3 Electromagnetic 94 | . . . 10 19 5 . 1 5 . 8 29 15 1 1 Robot Hit Streak 30 | 3 3 9 13 30 8 10 20 11 9 12 8 11 18 16 Robot Miss Streak 11 | 3 1 5 4 11 3 2 2 1 1 3 2 6 3 4 Penetration Max 2 | . . . . 1 . . 1 1 . 1 . . . 2 Secondary Targets 4 | . . . 1 . 1 . . . . . . . . 2 Max Gunslinging Chain 1 | . . . 1 . 1 . . . . . . . . 1 Shots Hit Robots 714 | 15 6 74 42 128 48 29 85 16 24 73 24 30 29 91 Core Hits 403 | 6 1 38 13 85 42 12 32 13 6 51 14 28 15 47 Critical Hits 47 | . . 4 . 8 1 2 2 . 3 15 1 3 2 6 Critical Kills 19 | . . 2 . 3 . 2 1 . 2 7 . 1 . 1 Critical Parts Destroyed 24 | . . 2 . 5 1 . . . . 7 1 1 2 5 Melee Attacks 72 | . . . 7 18 8 12 3 . . . . . 1 23 Impact 31 | . . . 7 18 6 . . . . . . . . . Slashing . | . . . . . . . . . . . . . . . Piercing 17 | . . . . . 2 12 3 . . . . . . . Entropic 24 | . . . . . . . . . . . . . 1 23 Sneak Attacks 7 | . . . 4 1 2 . . . . . . . . . Combat Hostiles . | . . . . . . . . . . . . . . . Follow-up Attacks . | . . . . . . . . . . . . . . . Damage Inflicted 28947 | 190 36 1442 1051 4041 2238 1325 3407 747 588 3625 1298 3477 1179 4303 Guns 8883 | 190 36 622 406 1109 911 165 437 275 433 1266 21 169 256 2587 Cannons 11118 | . . 611 227 1538 . 862 2832 231 155 1300 879 1584 839 60 Explosions 6211 | . . 209 . 1153 1158 . . 241 . 1054 398 1716 . 282 Melee 2662 | . . . 415 241 169 298 112 . . . . . 84 1343 Ramming 73 | . . . 3 . . . 26 . . 5 . 8 . 31 Kinetic 10084 | 102 11 540 150 1238 81 . 1218 153 281 1040 21 1544 1058 2647 Thermal 9306 | 88 25 693 277 1322 1040 1027 2051 191 307 1676 31 578 . . Explosive 3741 | . . 209 . 446 716 . . 241 . 734 322 791 . 282 Electromagnetic 3081 | . . . 206 794 232 . . 162 . 170 924 556 37 . Impact 656 | . . . 415 241 . . . . . . . . . . Slashing . | . . . . . . . . . . . . . . . Piercing 579 | . . . . . 169 298 112 . . . . . . . Entropic 1427 | . . . . . . . . . . . . . 84 1343 Highest Corruption 12 | . . 4 4 3 1 . . . . 5 5 5 2 12 Average Corruption 3 | . . 3 4 2 1 . . . . 3 5 3 2 5 Corruption Purged . | . . . . . . . . . . . . . . . Effects 91 | . . 4 4 26 3 . . . . 12 22 . 6 14 Message Errors 19 | . . 1 1 3 . . . . . 4 5 . 1 4 Matter Fused 16 | . . . 2 5 . . . . . 4 1 . . 4 Heat Flow Errors 9 | . . 2 1 2 . . . . . . 3 . 1 . Energy Discharges 9 | . . 1 . 2 1 . . . . . 3 . 2 . Data Loss (minor) 13 | . . . . 4 2 . . . . 2 1 . 2 2 Misfires 4 | . . . . . . . . . . . 4 . . . Misdirections 1 | . . . . . . . . . . . . . . 1 Targeting Errors 19 | . . . . 9 . . . . . 2 5 . . 3 Weapon Failures 1 | . . . . 1 . . . . . . . . . . Overload Shots 49 | . . . . . . 18 26 3 1 1 . . . . Effects 7 | . . . . . . 3 1 . . 3 . . . . Energy Bleed 1 | . . . . . . . 1 . . . . . . . Heat Surge 2 | . . . . . . 2 . . . . . . . . Short Circuit 1 | . . . . . . 1 . . . . . . . . Meltdown 3 | . . . . . . . . . . 3 . . . . Overflow Damage 1209 | . . . 192 206 71 4 126 9 . 94 91 186 46 184 Projectiles 467 | . . . . 57 . 4 126 . . 44 77 113 46 . Explosions 366 | . . . . 95 71 . . 9 . 50 14 73 . 54 Melee 376 | . . . 192 54 . . . . . . . . . 130 Knockbacks 39 | . . . 3 22 . . 4 . . . . 7 3 . Impact 6 | . . . 3 2 . . 1 . . . . . . . Kinetic 31 | . . . . 18 . . 3 . . . . 7 3 . Secondary 2 | . . . . 2 . . . . . . . . . . Self-Inflicted Damage 396 | . . 56 . 20 18 . 12 . . 156 . . . 134 Shots 11 | . . 2 . 1 1 . . . . 4 . . . 3 Rammed 12 | . . . . . . . 1 . . 1 . 2 . 8 Targets Rammed 15 | . . . 1 . . . 2 . . 1 . 2 . 9 Kicked 2 | . . . 1 . . . 1 . . . . . . . Crushed 1 | . . . . . . . . . . . . . . 1 Highest Temperature 384 | 90 9 191 323 384 26 329 107 208 102 201 196 382 246 8 Average Temperature 78 | 34 6 57 128 89 12 80 25 95 58 40 47 156 52 5 Received Heat Transfer 2680 | . . 114 225 699 231 363 328 4 18 171 69 116 6 336 Effects 6 | . . . 2 2 . . . . . . . 2 . . Shutdowns 1 | . . . . 1 . . . . . . . . . . Energy Bleed 1 | . . . . 1 . . . . . . . . . . Interference 3 | . . . 2 . . . . . . . . 1 . . Damage (minor) 1 | . . . . . . . . . . . . 1 . . Siege Activations . | . . . . . . . . . . . . . . . Robots Corrupted 6 | . . . . 1 . . . 1 . . 3 1 . . Combat Hostiles 4 | . . . . 1 . . . 1 . . 1 1 . . Parts Fried 20 | . . . 2 4 . . . 1 . . 8 5 . . Impact Corruptions 11 | . . . 8 3 . . . . . . . . . . Robots Melted 1 | . . . . . . . . . . 1 . . . . Combat Hostiles 1 | . . . . . . . . . . 1 . . . . Parts Melted 15 | . . 1 . 1 6 2 1 . 1 3 . . . . Heat Transferred 11891 | 259 74 1332 592 2341 1805 1083 2102 224 335 1268 50 426 . . Parts Sabotaged . | . . . . . . . . . . . . . . . Parts Stolen . | . . . . . . . . . . . . . . . Parts Stripped . | . . . . . . . . . . . . . . . Power Chain Reactions 8 | . . . . 1 2 . . . . . 2 3 . . Missiles Intercepted . | . . . . . . . . . . . . . . . Alert | -11 -10 -9 -8 -7 -6 -5 -5 -5 -5 -4 -4 -4 -3 -3 ------- Run | Scr Mat Mat Mat Fac Fac Fac Ext Cet Arc Fac Upp War Pro Res Peak Influence 855 | 25 102 320 238 367 599 305 542 823 491 855 . . . 249 Initial 329 | . 16 42 74 38 156 102 149 303 329 171 . . . 27 Average 224 | 10 46 161 118 139 334 132 299 521 466 473 . . . 98 Maximum Alert Level 3 | . . 1 1 1 2 1 2 3 2 3 . . . 1 Low Security (%) 54 | 100 100 73 94 76 11 71 22 . . 9 . . . 91 Level 1 27 | . . 26 5 23 52 28 54 10 14 20 . . . 8 Level 2 16 | . . . . . 35 . 23 68 85 67 . . . . Level 3 . | . . . . . . . . 20 . 2 . . . . Level 4 . | . . . . . . . . . . . . . . . Level 5 . | . . . . . . . . . . . . . . . High Security . | . . . . . . . . . . . . . . . Max Security . | . . . . . . . . . . . . . . . Squads Dispatched 33 | . 2 . . 8 6 2 4 . . 7 . . . 4 Investigation 6 | . 2 . . 1 . 1 1 . . 1 . . . . Extermination 8 | . . . . 3 1 . . . . 2 . . . 2 Reinforcement 11 | . . . . 1 2 . 3 . . 3 . . . 2 Assault 2 | . . . . . . 1 . . . 1 . . . . Garrison 6 | . . . . 3 3 . . . . . . . . . Intercept . | . . . . . . . . . . . . . . . Construction Impeded 3 | . . . . . 1 . . . . 1 . . . 1 Haulers Reinforced 1 | . . . . . . . . . . 1 . . . . Stealth | -11 -10 -9 -8 -7 -6 -5 -5 -5 -5 -4 -4 -4 -3 -3 --------- Run | Scr Mat Mat Mat Fac Fac Fac Ext Cet Arc Fac Upp War Pro Res Distress Signals 5 | . . 1 . . . . 1 1 . . . . . 2 Communications Jammed . | . . . . . . . . . . . . . . . Distress Signals . | . . . . . . . . . . . . . . . Times Spotted 289 | . 3 28 8 38 17 15 36 10 9 37 4 36 9 39 Peak Tracking Total 12 | . 1 4 3 6 6 6 4 5 2 7 2 12 4 10 Tactical Retreats 19 | . . 2 . 4 1 3 1 . . 1 1 . 1 5 Traps | -11 -10 -9 -8 -7 -6 -5 -5 -5 -5 -4 -4 -4 -3 -3 ------- Run | Scr Mat Mat Mat Fac Fac Fac Ext Cet Arc Fac Upp War Pro Res Traps Triggered 18 | . . 3 . 3 . 4 4 . . 2 . . . 2 Indirectly . | . . . . . . . . . . . . . . . Trap Hack Attempts . | . . . . . . . . . . . . . . . Triggered . | . . . . . . . . . . . . . . . Disarmed . | . . . . . . . . . . . . . . . Reprogrammed . | . . . . . . . . . . . . . . . Reused 3 | . . . . . . . . . . . . . . 3 Traps Extracted . | . . . . . . . . . . . . . . . Installed 3 | . . . . . . . . . . . . . . 3 Triggered 15 | . . . . . . . . . . . . 12 . 3 Machines | -11 -10 -9 -8 -7 -6 -5 -5 -5 -5 -4 -4 -4 -3 -3 ---------- Run | Scr Mat Mat Mat Fac Fac Fac Ext Cet Arc Fac Upp War Pro Res Machines Disabled 32 | . . 2 . 9 4 2 3 3 2 7 . . . . Max in Single Turn 5 | . . 1 . 5 1 1 1 . 1 5 . . . . Garrison Access 5 | . . . 1 2 . 1 . . . 1 . . . . Machines Sabotaged . | . . . . . . . . . . . . . . . Garrisons Compromised . | . . . . . . . . . . . . . . . Overloaded Fab Kills . | . . . . . . . . . . . . . . . Fab Network Shutdowns . | . . . . . . . . . . . . . . . Hacking | -11 -10 -9 -8 -7 -6 -5 -5 -5 -5 -4 -4 -4 -3 -3 --------- Run | Scr Mat Mat Mat Fac Fac Fac Ext Cet Arc Fac Upp War Pro Res Machines Accessed 66 | . 5 10 3 14 8 5 13 . 1 2 . 3 . 2 Terminals 40 | . 3 6 1 9 3 3 12 . . 1 . . . 2 Fabricators 4 | . . . . 3 1 . . . . . . . . . Repair Stations 2 | . . 1 . . . . 1 . . . . . . . Recycling Units 9 | . 2 2 1 . 3 1 . . . . . . . . Scanalyzers 3 | . . 1 . . 1 1 . . . . . . . . Garrison Access 4 | . . . 1 2 . . . . . 1 . . . . Total Hacks 174 | . 16 29 6 29 20 6 25 . 25 4 . 6 . 8 Successful 101 | . 9 19 4 12 8 1 12 . 25 1 . 6 . 4 Failed 73 | . 7 10 2 17 12 5 13 . . 3 . . . 4 Catastrophic 14 | . . 1 . 6 1 2 1 . . 2 . . . 1 Database Lockouts . | . . . . . . . . . . . . . . . Manual 59 | . 8 12 1 7 10 3 7 1 3 3 . . . 4 Terminals 106 | . 13 23 2 17 13 4 23 . . 3 . . . 8 Fabricators 9 | . . . . 8 1 . . . . . . . . . Repair Stations 4 | . . 2 . . . . 2 . . . . . . . Recycling Units 11 | . 3 2 1 . 4 1 . . . . . . . . Scanalyzers 5 | . . 2 . . 2 1 . . . . . . . . Garrison Access 8 | . . . 3 4 . . . . . 1 . . . . Terminal Hacks 62 | . 4 7 1 6 1 . 9 . 25 . . 6 . 3 Record 30 | . . . . . . . . . 25 . . 5 . . Part Schematic 1 | . . . . 1 . . . . . . . . . . Robot Analysis 3 | . 1 2 . . . . . . . . . . . . Open Door 10 | . . . . . . . 9 . . . . 1 . . Terminal Index 1 | . 1 . . . . . . . . . . . . . Alert Level 5 | . . 1 1 1 1 . . . . . . . . 1 Unreport Threat 3 | . . 1 . 2 . . . . . . . . . . Locate Traps 1 | . . . . 1 . . . . . . . . . . Hauler Manifests 1 | . . 1 . . . . . . . . . . . . Registered Components 2 | . . 1 . . . . . . . . . . . 1 Zone Layout 5 | . 2 1 . 1 . . . . . . . . . 1 Fabricator Hacks 2 | . . . . 2 . . . . . . . . . . Load Schematic 1 | . . . . 1 . . . . . . . . . . Build 1 | . . . . 1 . . . . . . . . . . Repair Station Hacks 4 | . . 2 . . . . 2 . . . . . . . Scan Component 2 | . . 1 . . . . 1 . . . . . . . Repair 2 | . . 1 . . . . 1 . . . . . . . Recycling Unit Hacks 9 | . 2 2 1 . 3 1 . . . . . . . . Retrieve Matter 1 | . . . . . 1 . . . . . . . . . Retrieve Components 8 | . 2 2 1 . 2 1 . . . . . . . . Scanalyzer 3 | . . 2 . . 1 . . . . . . . . . Insert Component 2 | . . 1 . . 1 . . . . . . . . . Analyze 1 | . . 1 . . . . . . . . . . . . Garrison Access Hacks 4 | . . . 1 2 . . . . . 1 . . . . Seal Access 4 | . . . 1 2 . . . . . 1 . . . . Unauthorized Hacks 17 | . 3 6 1 2 3 . 1 . . . . . . 1 Terminals 17 | . 3 6 1 2 3 . 1 . . . . . . 1 Track 5 | . 1 2 . . 1 . 1 . . . . . . . Botnet 9 | . 1 3 1 2 1 . . . . . . . . 1 Operators 3 | . 1 1 . . 1 . . . . . . . . . Fabricators . | . . . . . . . . . . . . . . . Repair Stations . | . . . . . . . . . . . . . . . Recycling Units . | . . . . . . . . . . . . . . . Scanalyzers . | . . . . . . . . . . . . . . . Garrison Access . | . . . . . . . . . . . . . . . Data Cores Recovered 1 | . . 1 . . . . . . . . . . . . Used . | . . . . . . . . . . . . . . . Hacking Detections 48 | . 4 7 1 12 8 4 9 . . 1 . . . 2 Full Trace Events 3 | . . . . 1 . . 1 . . 1 . . . . Feedback Events 1 | . . . . 1 . . . . . . . . . . Corruption 1 | . . . . 1 . . . . . . . . . . Feedback Blocked . | . . . . . . . . . . . . . . . Robot Schematics Acquired . | . . . . . . . . . . . . . . . Robots Built . | . . . . . . . . . . . . . . . Matter . | . . . . . . . . . . . . . . . Time . | . . . . . . . . . . . . . . . Total Robot Build Rating . | . . . . . . . . . . . . . . . Part Schematics Acquired 2 | . . 1 . 1 . . . . . . . . . . Parts Built 2 | . . . . 2 . . . . . . . . . . Matter 190 | . . . . 190 . . . . . . . . . . Time 95 | . . . . 95 . . . . . . . . . . Total Part Build Rating 10 | . . . . 10 . . . . . . . . . . Parts Repaired 2 | . . 1 . . . . 1 . . . . . . . Time 99 | . . 38 . . . . 61 . . . . . . . Parts Recycled . | . . . . . . . . . . . . . . . Recycled Matter . | . . . . . . . . . . . . . . . Retrieved Matter . | . . . . . . . . . . . . . . . Retrieved Components 29 | . 9 5 3 . 10 2 . . . . . . . . Parts Scanalyzed 2 | . . 1 . . 1 . . . . . . . . . Part Schematics Acquired 1 | . . 1 . . . . . . . . . . . . Parts Damaged . | . . . . . . . . . . . . . . . Bothacking | -11 -10 -9 -8 -7 -6 -5 -5 -5 -5 -4 -4 -4 -3 -3 ------------ Run | Scr Mat Mat Mat Fac Fac Fac Ext Cet Arc Fac Upp War Pro Res Used RIF Installer . | . . . . . . . . . . . . . . . Robots Hacked 6 | . . . . . . . 1 1 2 . . 2 . . Non-combat 2 | . . . . . . . . . 2 . . . . . Combat 4 | . . . . . . . 1 1 . . . 2 . . Robot Hacks Applied 9 | . . . . . . . 1 1 5 . . 2 . . parse_system 6 | . . . . . . . 1 1 2 . . 2 . . no_distress 1 | . . . . . . . . . 1 . . . . . check_alert 2 | . . . . . . . . . 2 . . . . . Relay Couplers Released 1 | . . . . . . 1 . . . . . . . . Machine Destruction 1 | . . . . . . 1 . . . . . . . . Robots Rewired 7 | . . . . . . . 3 . . . . 4 . . Allies Hacked . | . . . . . . . . . . . . . . . Hacks Repelled . | . . . . . . . . . . . . . . . Allies | -11 -10 -9 -8 -7 -6 -5 -5 -5 -5 -4 -4 -4 -3 -3 -------- Run | Scr Mat Mat Mat Fac Fac Fac Ext Cet Arc Fac Upp War Pro Res Total Allies 27 | . . . . 3 . . 16 4 . . . 4 . . Largest Group 6 | . . . . 3 . . 6 6 4 3 . 4 1 1 Highest-Rated Group 554 | . . . . 93 . . 306 554 304 282 . 208 60 59 Highest-Rated Ally 156 | . . . . 31 . . 156 156 94 94 . 60 60 59 Total Orders . | . . . . . . . . . . . . . . . Ally Attacks 294 | . . . . 43 . . 96 52 27 9 . 67 . . Total Damage 7088 | . . . . 736 . . 1796 1457 986 419 . 1694 . . Kills 42 | . . . . 2 . . 17 11 1 2 . 9 . . Allies Corrupted 1 | . . . . 1 . . . . . . . . . . Allies Melted 1 | . . . . . . . . . . . . 1 . . Intel | -11 -10 -9 -8 -7 -6 -5 -5 -5 -5 -4 -4 -4 -3 -3 ------- Run | Scr Mat Mat Mat Fac Fac Fac Ext Cet Arc Fac Upp War Pro Res Robot Analysis Total 3 | . 1 2 . . . . . . . . . . . . Derelict Logs Recovered 1 | . . . . . . . . . . . 1 . . . Drone Launches . | . . . . . . . . . . . . . . . Drone Recoveries . | . . . . . . . . . . . . . . . Exploration | -11 -10 -9 -8 -7 -6 -5 -5 -5 -5 -4 -4 -4 -3 -3 ------------- Run | Scr Mat Mat Mat Fac Fac Fac Ext Cet Arc Fac Upp War Pro Res Turns Passed 12614 | 143 273 1619 549 2444 1407 751 1135 293 232 843 740 1104 442 639 Spaces Moved 6599 | 65 143 883 304 1395 850 394 475 126 115 378 371 575 229 296 Core 141 | 4 . . . . . . . . . . . . . 137 Treads 1879 | 5 . . . . . 13 . 102 115 378 353 575 229 109 Legs 4496 | 56 143 883 304 1312 850 381 475 24 . . 18 . . 50 Wheels 83 | . . . . 83 . . . . . . . . . . Hover . | . . . . . . . . . . . . . . . Flight . | . . . . . . . . . . . . . . . Fastest Speed 50 | 50 120 120 123 120 126 156 150 150 160 160 160 160 163 50 Average Speed 143 | 119 120 134 125 133 136 158 152 158 160 160 160 160 165 137 Slowest Speed 900 | 160 120 155 155 180 160 240 156 180 160 160 180 163 220 900 Overloaded Moves . | . . . . . . . . . . . . . . . Propulsion Burnouts . | . . . . . . . . . . . . . . . Robots Hopped . | . . . . . . . . . . . . . . . Cave-ins Triggered . | . . . . . . . . . . . . . . . Exploration Rate (%) 41 | 3 35 71 24 40 25 8 72 64 83 18 59 73 40 10 Regions Visited 14 Branch Regions 6 Pre-discovered Areas 1 | . . . . . . . . . . . 1 . . . Known Exits Taken 2 | . . . . 1 1 . . . . . . . . . Unknown Exits Taken 12 | 1 1 1 1 . . 1 1 1 1 1 1 1 1 . Scrap Searched 3 | . . . . . . . . . . . 2 . 1 . Spaces Dug 25 | . . 1 3 9 6 2 . . . 4 . . . . Terrain Destroyed 460 | . . 21 3 81 49 7 6 23 4 129 8 70 8 51 Melee 17 | . . . 1 9 6 1 . . . . . . . . Projectile 75 | . . 1 2 11 . 6 6 2 4 18 . 3 8 14 AOE 368 | . . 20 . 61 43 . . 21 . 111 8 67 . 37 Terrain Rammed . | . . . . . . . . . . . . . . . Walls Destroyed . | . . . . . . . . . . . . . . . Machines Disabled . | . . . . . . . . . . . . . . . Actions | -11 -10 -9 -8 -7 -6 -5 -5 -5 -5 -4 -4 -4 -3 -3 --------- Run | Scr Mat Mat Mat Fac Fac Fac Ext Cet Arc Fac Upp War Pro Res Total 8665 | 94 235 1188 405 1765 1019 464 775 202 143 504 482 718 258 413 Wait 841 | . 81 185 31 158 74 6 134 44 2 38 69 12 3 4 Move 6586 | 64 142 882 303 1394 849 393 474 125 114 377 370 575 228 296 Hop . | . . . . . . . . . . . . . . . Pick Up 83 | 5 3 12 4 15 13 4 8 2 2 2 7 4 1 1 Fast Attach 136 | 8 1 11 12 24 8 9 10 6 . 12 4 7 4 20 Attach 42 | . . 3 1 9 4 3 3 . 1 5 2 2 1 8 Detach 21 | 1 . 2 1 3 1 4 1 . . 1 1 3 1 2 Swap 60 | . . 7 3 19 7 2 7 6 2 4 1 2 . . Drop 127 | . 3 20 11 27 17 6 15 10 3 4 . 6 1 4 Fire 547 | 16 5 66 31 98 38 25 66 9 19 60 28 26 18 42 Melee 72 | . . . 7 18 8 12 3 . . . . . 1 23 Ram 6 | . . . . . . . . . . . . . . 6 Kick 5 | . . . 1 . . . 2 . . . . . . 2 Crush 4 | . . . . . . . . . . 1 . 1 . 2 Escape Stasis 20 | . . . . . . . 20 . . . . . . . Rewire 112 | . . . . . . . 32 . . . . 80 . . Trap 3 | . . . . . . . . . . . . . . 3 Miscellaneous . | . . . . . . . . . . . . . . . Route ------- -11/Scrapyard -10/Materials (discovered 2 exits: *Mat / [Min]) -9/Materials (discovered 3 exits: *Mat / [*Min] / [*Sto]) -8/Materials -7/Factory (discovered 4 exits: *Fac x2 / *Low x2) -6/Factory (discovered 3 exits: *Fac / *Low x2) -5/Factory (discovered 2 exits: [Upp] / *Ext) -5/Extension (discovered 3 exits: *Fac x2 / *Cet) -5/Cetus -5/Archives (discovered 3 exits: *Fac / [*Hub x2]) -4/Factory (discovered 2 exits: *Res / [*Upp]) -4/Upper Caves -4/Warlord -3/Proximity Caves -3/Research (discovered 1 exit: [*Qua]) History --------- Turn | Location | Event 13 | -11/Scrapyard | Discovered new exit (range 16) 144 | -11/Scrapyard | Entered Materials 302 | -10/Materials | Discovered new exit (range 21) 318 | -10/Materials | Build established: Mutant 375 | -10/Materials | Discovered new exit (range 14) 417 | -10/Materials | Entered another Materials area 417 | -9/Materials | Evolved 2 slots: Utility x2 1096 | -9/Materials | Repaired Titanium Leg 1133 | -9/Materials | Discovered new exit (range 13) 1275 | -9/Materials | Build established: Scavenger-Mutant 1326 | -9/Materials | Discovered new exit (range 11) 1808 | -9/Materials | Discovered new exit (range 5) 2036 | -9/Materials | Entered another Materials area 2036 | -8/Materials | Evolved 2 slots: Propulsion x1, Weapon x1 2523 | -8/Materials | Discovered new exit (range 9) 2585 | -8/Materials | Entered Factory 2585 | -7/Factory | Evolved 2 slots: Utility x2 2661 | -7/Factory | Allied Derelicts emerged from ambush trap array 2902 | -7/Factory | Build established: Scavenger-Assassin 3208 | -7/Factory | Discovered new exit (range 13) 3234 | -7/Factory | Build established: Assassin 3314 | -7/Factory | Identified exit to Lower Caves 3413 | -7/Factory | Garrison activated, responded to threat 3461 | -7/Factory | Lost 3 parts (2n1w) 3670 | -7/Factory | Found Prototype Launcher 3670 | -7/Factory | Identified Rocket Array 4086 | -7/Factory | Discovered exit to Lower Caves (range 20) 4097 | -7/Factory | Fabricated Flexi-carbon Leg (x2) 4679 | -7/Factory | Discovered new exit (range 22) 4809 | -7/Factory | Identified exit to Factory 4921 | -7/Factory | Discovered exit to Factory (range 23) 5029 | -7/Factory | Entered another Factory area 5029 | -6/Factory | Evolved 2 slots: Utility x2 5238 | -6/Factory | Destroyed 10 combat bots 5339 | -6/Factory | Discovered new exit (range 12) 5378 | -6/Factory | Identified exit to Lower Caves 5974 | -6/Factory | Discovered exit to Lower Caves (range 23) 6016 | -6/Factory | Garrison activated, responded to threat 6355 | -6/Factory | Discovered new exit (range 16) 6433 | -6/Factory | Identified exit to Factory 6436 | -6/Factory | Entered another Factory area 6436 | -5/Factory | Evolved 2 slots: Propulsion x1, Utility x1 7108 | -5/Factory | Discovered new exit (range 9) 7117 | -5/Factory | Discovered new exit (range 22) 7187 | -5/Factory | Entered Extension 7242 | -5/Extension | Rescued a captive Derelict 7272 | -5/Extension | Rescued a captive Derelict 7273 | -5/Extension | Rescued a captive Derelict 7279 | -5/Extension | Found Hvy. Reactive Plating 7350 | -5/Extension | Repaired Broken Lrn. Sensor Array 7411 | -5/Extension | Rescued a captive Derelict 7412 | -5/Extension | Rescued a captive Derelict 7648 | -5/Extension | Rescued a captive Derelict 7735 | -5/Extension | Spotted B-75 Beast 7750 | -5/Extension | Discovered new exit (range 21) 7795 | -5/Extension | Destroyed B-75 Beast 7804 | -5/Extension | Spotted B-75 Beast 7885 | -5/Extension | Destroyed B-75 Beast 7964 | -5/Extension | Rescued a captive Derelict 7967 | -5/Extension | Rescued a captive Derelict 7978 | -5/Extension | Build established: Scavenger-Assassin 8041 | -5/Extension | Rescued a captive Derelict 8042 | -5/Extension | Rescued a captive Derelict 8070 | -5/Extension | Rescued a captive Derelict 8082 | -5/Extension | Rescued A7 8144 | -5/Extension | Rescued a captive Derelict 8212 | -5/Extension | Disrupted transfer network 8267 | -5/Extension | Discovered new exit (range 19) 8272 | -5/Extension | Discovered new exit (range 12) 8322 | -5/Extension | Entered Cetus 8322 | -5/Cetus | Accompanied by 2 allies (A7) 8327 | -5/Cetus | Acquired a Cetus Manufacturing Module code from A7 8343 | -5/Cetus | Spotted Cetus Guard 8343 | -5/Cetus | Spotted Cetus Guard 8343 | -5/Cetus | Spotted Cetus Guard 8343 | -5/Cetus | Spotted Cetus Guard 8352 | -5/Cetus | Allies destroyed Cetus Guard 8352 | -5/Cetus | Destroyed Cetus Guard 8358 | -5/Cetus | Destroyed Cetus Guard 8360 | -5/Cetus | Allies destroyed Cetus Guard 8455 | -5/Cetus | Started Cetus Manufacturing Module 8480 | -5/Cetus | Manufactured an Enhanced Grunt 8505 | -5/Cetus | Manufactured an Enhanced Grunt 8530 | -5/Cetus | Manufactured an Enhanced Grunt 8545 | -5/Cetus | Discovered new exit (range 20) 8555 | -5/Cetus | Manufactured an Enhanced Grunt 8561 | -5/Cetus | Cetus Manufacturing Module disabled 8615 | -5/Cetus | Entered Archives 8615 | -5/Archives | Accompanied by 5 allies (A7) 8660 | -5/Archives | Discovered new exit (range 17) 8677 | -5/Archives | Discovered new exit (range 21) 8691 | -5/Archives | Unable to access archive contents 8707 | -5/Archives | Unable to access archive contents 8712 | -5/Archives | Discovered new exit (range 16) 8723 | -5/Archives | Unable to access archive contents 8739 | -5/Archives | Unable to access archive contents 8760 | -5/Archives | Unable to access archive contents 8794 | -5/Archives | Unable to access archive contents 8847 | -5/Archives | Entered Factory 8847 | -4/Factory | Accompanied by 3 allies 8847 | -4/Factory | Evolved 2 slots: Weapon x2 9285 | -4/Factory | Discovered new exit (range 14) 9393 | -4/Factory | Discovered new exit (range 15) 9524 | -4/Factory | Lost 5 parts (1p1u3w) 9597 | -4/Factory | First assault squad dispatched 9685 | -4/Factory | Lost 6 parts (1p1n3u1w) 9690 | -4/Factory | Entered Upper Caves 9692 | -4/Upper Caves | Attracted the attention of an 0b10 checkpoint 9727 | -4/Upper Caves | Lost 5 parts (1n2u2w) 9987 | -4/Upper Caves | Build established: Mutant 10185 | -4/Upper Caves | Learned location of Testing (-2) 10416 | -4/Upper Caves | A Derelict revealed a hidden shortcut to "reach the base" 10430 | -4/Upper Caves | Entered Warlord 10485 | -4/Warlord | System corruption cleaned by Quarantine Array 10512 | -4/Warlord | Build established: Scavenger-Mutant 10827 | -4/Warlord | Warlord's base attacked by MAIN.C 10845 | -4/Warlord | Found Prototype Piercing Weapon 10845 | -4/Warlord | Identified Vortex Lance 10851 | -4/Warlord | Found Vortex Lance 11115 | -4/Warlord | Met Warlord 11177 | -4/Warlord | Warlord forces counterattacked 11366 | -4/Warlord | Found Prototype Ballistic Cannon 11366 | -4/Warlord | Identified Hvy. Autocannon 11420 | -4/Warlord | Spotted Striker 11430 | -4/Warlord | Destroyed Striker 11458 | -4/Warlord | Spotted Executioner 11468 | -4/Warlord | Destroyed Executioner 11505 | -4/Warlord | Discovered new exit (range 14) 11507 | -4/Warlord | Destroyed 7 combat bots 11528 | -4/Warlord | Spotted Striker 11528 | -4/Warlord | Spotted Striker 11534 | -4/Warlord | Entered Proximity Caves 11534 | -3/Proximity Caves | Accompanied by 1 ally 11565 | -3/Proximity Caves | Lost 3 parts (1u2w) 11782 | -3/Proximity Caves | Spotted B-86 Titan 11849 | -3/Proximity Caves | Build established: Scavenger-Gunner 11924 | -3/Proximity Caves | Discovered new exit (range 7) 11976 | -3/Proximity Caves | Entered Research 11976 | -3/Research | Accompanied by 1 ally 11976 | -3/Research | Evolved 2 slots: Propulsion x1, Utility x1 11982 | -3/Research | Lost 4 parts (1p2n1w) 12170 | -3/Research | Spotted B-86 Titan 12369 | -3/Research | Lost 8 parts (1p1n3u3w) 12427 | -3/Research | Lost 3 parts (1n1u1w) 12472 | -3/Research | Core integrity fell below 50% 12512 | -3/Research | Lost 14 parts (1p4n3u6w) 12597 | -3/Research | System corruption reached 10% 12607 | -3/Research | Spotted B-90 Cyclops 12609 | -3/Research | Discovered new exit (range 15) 12610 | -3/Research | Core integrity fell below 20% 12615 | -3/Research | Destroyed by B-90 Cyclops with Nova Cannon Last Messages --------------- 12575_ K-01 Serf heat damages Sml. Matter Pod. 12580_ >L,GZIGKNA768XM69O #P<2 12588_ Slammed into P-80 Master. 12590_ Dropped Dirty Bomb Trap. 12591_ Installed Dirty Bomb Trap. 12595_ System corrupted: Matter fused (-8). 12596_ P-80 Master triggered Dirty Bomb Trap. 12596_ An explosion rips through the floor. 12597_ Biometal Leg destroyed. 12598_ Penetrated by Slug. 12598_ Biometal Leg destroyed. 12598_ Penetrated by Slug. 12598_ Slug penetrates Wall. 12600_ P-80 Master resets H-77 Assassin, system corruption cleaned. 12601_ U-05 Engineer lays Concrete. 12605_ K-01 Serf heat damages core (-2). 12607_ K-01 Serf heat damages Broken Wheel. 12609_ EXIT=FOUND 12610_ LPTEAUOTAQN5&YZNZCFWABLHZT5H>GVNZJ& 12615_ B-90 Cyclops activates siege mode. Map ----- +----------------------------------------------------+ | ??????!??????????????????????????????????????????? | | ?????????????????????????????????????????????????? | | ?????????????????????????????????????????????????? | | ?????????????????????????????????????????????????? | | ?????????????????????????????????????????????????? | | ?????????????????????????????????????????????????? | | ?????????????????????????????????????????????????? | | ?????????????????????????????????????????????????? | | ?????????????????????????????????????????????????? | | ?????????????????????????????????????????????????? | | ?????????????????????????????????????????????????? | | ##???????????????????????????????????????????????? | | #???????????????????????????????????????????????? | | #???????????????????????????????????????????????? | | #????????????###+####???????????????????????????? | | #????????????# #???????????????????????????? | | #????????????# #???????????????????????????? | | #????????????# !! ########????????????????????? | | #????????????# ! ! ##"#"#"#????????????????????? | | #????????????# ##"#"#"#######??????????????? | | ???????????????? # " " " """""#??????????????? | | ##################/##; "" ""#??????????????? | | pp ^ "#??????????????? | | BB < ""#??????????????? | | ^ BB ""#??????????????? | | # ##############+##; @ "" ""???????????????? | | # # # #T" " " """""???????????????? | | # # # ##"#"#"#####????????????????? | | # # # ??#"#"#"#????????????????????? | | # """# ??#####?#????????????????????? | | # """# ??????????????????????????????? | | # """# ??????????????????????????????? | | #### ####???????????????????????????????? | | ??# !#??????????????????????????????????? | | ??#############??????????????????????????????????? | | #####????????????????????????????????????????????? | | #????????????????????????????????????????????? | | #????????????????????????????????????????????? | | #????????????????????????????????????????????? | | # ##############???????????????????????????????? | | # # #???????????????????????????????? | | # # #???????????????????????????????? | | # + #???????????????????????????????? | | # # #???????????????????????????????? | | # # #???????????????????????????????? | | # ##########?###???????????????????????????????? | | ##+########### #?????????????????????????????????? | | # #?????????????????????????????????? | | ######?????????????????????????????????? | | | #??????????????????????????????????????? | +----------------------------------------------------+ Best States ------------- Heat Dissipation 97 Energy Generation 25 Energy Capacity 350 Matter Stores 300 Matter Capacity 300 Sight Range 20 Robot Scan Range 20 Terrain Scan Range 24 Terrain Scan Density 210 Armor Coverage 825 Resistance: KI 40 Utility Shielding 66 Evasion (%) 50 Targeting Accuracy 8 Melee Accuracy 5 Recoil Reduction 4 Particle Charging 25 Defensive Hacking 10 Item Schematics ----------------- Imp. Sensor Array | -9/Materials | Scanalyzed Med. Armor Plating | -7/Factory | Hacked Robot Schematics ------------------ None Fabricated ------------ Flexi-carbon Leg | x2 | -7/Factory | Preloaded Alien Tech Used ----------------- None Achievements -------------- None Challenges ------------ None Game ------ Seed GravityThermalChronowheel Manual? 0 Play Time 02:18:16 Cumulative 171.9 hours Start 2021.04.11 @ 11:28:21 End 2021.04.12 @ 09:06:37 Sessions 3 Manual Loads 0 Difficulty Rogue Special Mode None Game No. 277 Rogue 273 Adventurer 0 Explorer 4 Win Type - Total 1 Types 1/0/0/0/0/0/0/0/0 Lore% 67 Gallery% 78 Achievement% 51 Wizard Run 0 Options --------- ASCII 1 Keyboard 1 Movement Numpad Keybinds 0 Fullscreen 1 Font 18/X11 Map View 76x50 Tactical HUD 1 Map Filters NONE Filters NONE Steam 1 RUN: 97a3770a-6513-4215-80a9-17d01cc5b7d2